Cogmind - Beta 13 @@@ ROGUE MODE // 2024.06.05 @ 23:27:25 Player: FLOYDBLASTER9001 Result: Self-destructed Performance ------------- Evolutions (2) 1000 Regions Visited (3) 600 Robots Destroyed (42) 210 Value Destroyed (1131) 1131 Prototype IDs (0) 0 Alien Tech Used (0) 0 Bonus (0) 0 TOTAL SCORE: 2941 Bonus ------- None Cogmind --------- Core Integrity 313/550 Matter 30/300 Energy 125/125 System Corruption 2% Temperature Cool (0) Movement Walking (125) Location -8/Materials Parts ------- > --- POWER (1) -------- Light Ion Engine > --- PROPULSION (2) --- Carbon-fiber Leg Titanium Leg > --- UTILITY (4) ------ Targeting Computer > --- WEAPON (4) ------- Minigun Gauss Rifle > --- INVENTORY (5) ---- VSS Leg Hardened Light Armor Plating Hardened Light Armor Plating Concussive RPG (1) Peak State ------------ > --- POWER ------------ Nuclear Core > --- PROPULSION ------- Carbon-fiber Leg Titanium Leg > --- UTILITY ---------- Improved Heat Sink Targeting Computer Improved Targeting Computer Insulated Plating > --- WEAPON ----------- Particle Gun Heavy Assault Rifle Gauss Rifle Assault Cannon > --- INVENTORY -------- VSS Leg Heat Sink Hardened Light Armor Plating Hardened Light Armor Plating Hardened Light Armor Plating [Rating: 30] Favorites ----------- Power Nuclear Core Engine Light Ion Engine Power Core Nuclear Core Propulsion VSS Leg Treads Light Treads Leg VSS Leg Utility Targeting Computer Device Improved Heat Sink Processor Targeting Computer Protection Insulated Plating Weapon Assault Cannon Energy Gun Particle Gun Ballistic Gun Heavy Assault Rifle Ballistic Cannon Assault Cannon Build | -11 -10 -9 -8 ------- Run | Yrd Mat Mat Mat Slots Evolved 4 | . . 2 2 Power . | . . . . Propulsion . | . . . . Utility 2 | . . . 2 Weapon 2 | . . 2 . Parts Attached 49 | 5 8 16 20 Power 3 | 1 . 1 1 Engine 2 | 1 . . 1 Core 1 | . . 1 . Reactor . | . . . . Propulsion 9 | 2 . 4 3 Treads 2 | 2 . . . Leg 7 | . . 4 3 Wheel . | . . . . Hover . | . . . . Flight . | . . . . Utility 13 | . 4 1 8 Device 5 | . 2 1 2 Storage . | . . . . Processor 5 | . 2 . 3 Hackware . | . . . . Protection 3 | . . . 3 Artifact . | . . . . Weapon 24 | 2 4 10 8 Energy Gun 1 | . . . 1 Energy Cannon . | . . . . Ballistic Gun 13 | 2 2 6 3 Ballistic Cannon 10 | . 2 4 4 Launcher . | . . . . Special Weapon . | . . . . Impact Weapon . | . . . . Slashing Weapon . | . . . . Piercing Weapon . | . . . . Special Melee Weapon . | . . . . Unidentified Prototypes . | . . . . Parts Lost 11 | . . . 11 Power 1 | . . . 1 Propulsion . | . . . . Utility 5 | . . . 5 Weapon 5 | . . . 5 Highest Loss Streak 4 | . . . 4 To Critical Strikes 1 | . . . 1 Average Slot Usage (%) 94 | . 96 99 87 Engine 4 | . 14 . 2 Core 6 | . . 10 6 Treads 8 | . 28 . . Leg 14 | . . 21 18 Device 6 | . 9 2 8 Processor 17 | . 15 19 16 Protection 1 | . . . 5 Energy Gun 1 | . . . 5 Ballistic Gun 12 | . 18 7 11 Ballistic Cannon 20 | . 9 36 12 Naked Turns . | . . . . Heaviest Build 27 | 5 9 27 26 Greatest Support 40 | 40 40 40 32 Greatest Overweight (x) 1 | . . 1 1 Average Overweight (x) . | . . . . Largest Inventory Capacity 5 | 5 5 5 5 Average Capacity 5 | 5 5 5 5 Most Carried 5 | 5 5 5 5 Average Carried 4 | 1 3 4 3 Final Capacity 5 | 5 5 5 5 Final Carried 5 | 1 5 5 4 Class Distribution -------------------- 49% | Gunner 31% | Mutant 15% | Scavenger-Gunner Dominant Class ---------------- Mutant | -10/Materials Gunner | -9/Materials Scavenger-Gunner | -8/Materials Resources | -11 -10 -9 -8 ----------- Run | Yrd Mat Mat Mat Matter Collected 1608 | 145 240 732 491 Remotely . | . . . . Salvage Created 1177 | 83 190 527 377 Parts 89 | 4 19 36 30 Haulers Intercepted 5 | . 2 2 1 Recyclers Shooed 3 | . . 3 . Parts Field Recycled . | . . . . Retrieved Matter . | . . . . Parts Self-Destructed . | . . . . Prevented . | . . . . Kills | -11 -10 -9 -8 ------- Run | Yrd Mat Mat Mat Combat Hostiles Destroyed 21 | . 1 11 9 Guns 8 | . 1 2 5 Cannons 13 | . . 9 4 Classes Destroyed 14 | 1 5 4 4 Worker 4 | . 1 2 1 Builder 2 | . . 1 1 Tunneler 2 | . 1 . 1 Hauler 5 | . 2 2 1 Recycler 1 | 1 . . . Mechanic 1 | . . 1 . Operator 1 | . . . 1 Watcher 5 | . 1 2 2 Cutter 1 | . . . 1 Grunt 13 | . 1 8 4 Brawler 1 | . . . 1 Duelist 2 | . . 1 1 Sentry 2 | . . 2 . Hunter 2 | . . . 2 Best Kill Streak 5 | 1 2 5 5 Combat Bots Only 3 | . 1 3 3 Max Kills in Single Turn 2 | 1 1 1 2 Gunslinging . | . . . . Exploded . | . . . . Melee . | . . . . Uniques/NPCs Destroyed . | . . . . Combat | -11 -10 -9 -8 -------- Run | Yrd Mat Mat Mat Hostile Shots Fired 176 | . 3 57 116 Missed 47 | . . 16 31 Damage Taken 2262 | . 56 544 1662 Core 355 | . 24 94 237 Absorbed by Shields . | . . . . Regen/Repaired (Parts) 131 | . . . 131 Core Remaining (%) 88 | 100 90 76 . Volleys Fired 114 | 5 26 36 47 Largest 4 | 2 2 4 4 Hottest 176 | 40 55 176 162 Shots Fired 350 | 10 52 126 162 Gun 166 | 10 51 24 81 Cannon 184 | . 1 102 81 Launcher . | . . . . Special . | . . . . Kinetic 325 | 10 52 126 137 Thermal 25 | . . . 25 Explosive . | . . . . Electromagnetic . | . . . . Robot Hit Streak 12 | 3 5 7 12 Robot Miss Streak 6 | 1 3 4 6 Penetration Max 1 | . . . 1 Secondary Targets . | . . . . Shots Hit Robots 167 | 6 30 47 84 Core Hits 71 | 2 13 25 31 Critical Kills 1 | . . . 1 Critical Parts Destroyed . | . . . . Critical Strikes 2 | . . . 2 Destroy 1 | . . . 1 Blast 1 | . . . 1 Melee Attacks . | . . . . Impact . | . . . . Slashing . | . . . . Piercing . | . . . . Sneak Attacks . | . . . . Combat Hostiles . | . . . . Follow-up Attacks . | . . . . Damage Inflicted 3226 | 51 254 1183 1738 Guns 1177 | 51 239 130 757 Cannons 2006 | . 15 1020 971 Explosions . | . . . . Melee . | . . . . Ramming 43 | . . 33 10 Kinetic 3008 | 51 254 1150 1553 Thermal 175 | . . . 175 Explosive . | . . . . Electromagnetic . | . . . . Impact . | . . . . Slashing . | . . . . Piercing . | . . . . Highest Corruption 2 | . 1 . 2 Average Corruption 1 | . 1 . 2 Corruption Purged . | . . . . Corruption Blocked . | . . . . Effects 8 | . 5 . 3 Message Errors 2 | . 2 . . Matter Fused 2 | . 1 . 1 Energy Discharges 1 | . 1 . . Parts Rejected 1 | . . . 1 Data Loss (minor) 2 | . 1 . 1 Overload Shots . | . . . . Overflow Damage 5 | . . . 5 Projectiles 5 | . . . 5 Explosions . | . . . . Melee . | . . . . Knockbacks 27 | . . 7 20 Impact . | . . . . Kinetic 24 | . . 6 18 Secondary 3 | . . 1 2 Self-Inflicted Damage . | . . . . Shots . | . . . . Rammed . | . . . . Targets Rammed 7 | . . 6 1 Kicked 7 | . . 6 1 Crushed . | . . . . Highest Temperature 313 | . 12 289 313 Average Temperature 107 | . 8 118 97 Received Heat Transfer 783 | . 18 297 468 Effects 2 | . . 1 1 Energy Bleed 2 | . . 1 1 Siege Activations . | . . . . Robots Corrupted . | . . . . Combat Hostiles . | . . . . Parts Fried . | . . . . Impact Corruptions . | . . . . Robots Melted . | . . . . Combat Hostiles . | . . . . Parts Melted . | . . . . Heat Transferred 407 | . . . 407 Parts Sabotaged . | . . . . Parts Stolen . | . . . . Parts Stripped . | . . . . Power Chain Reactions . | . . . . Alert | -11 -10 -9 -8 ------- Run | Yrd Mat Mat Mat Peak Influence 280 | 5 86 267 280 Initial 84 | . 3 1 84 Average 114 | 1 39 119 182 Maximum Alert Level 1 | . . 1 1 Low Security (%) 75 | 100 100 75 51 Level 1 24 | . . 24 48 Level 2 . | . . . . Level 3 . | . . . . Level 4 . | . . . . Level 5 . | . . . . High Security . | . . . . Max Security . | . . . . Squads Dispatched 5 | . 1 1 3 Investigation 2 | . . . 2 Extermination . | . . . . Reinforcement 3 | . 1 1 1 Assault . | . . . . Garrison . | . . . . Intercept . | . . . . Searches Triggered . | . . . . Construction Impeded . | . . . . Haulers Reinforced . | . . . . Active Scanning Responses . | . . . . Cargo Convoy Interrupts . | . . . . Stealth | -11 -10 -9 -8 --------- Run | Yrd Mat Mat Mat Distress Signals 3 | . . . 3 Communications Jammed . | . . . . Distress Signals . | . . . . Times Spotted 46 | . 4 21 21 Peak Tracking Total 4 | . 2 4 4 Tactical Retreats 3 | . . 2 1 Traps | -11 -10 -9 -8 ------- Run | Yrd Mat Mat Mat Traps Triggered 3 | . 2 . 1 Indirectly . | . . . . Trap Hack Attempts . | . . . . Triggered . | . . . . Disarmed . | . . . . Reprogrammed . | . . . . Reused . | . . . . Traps Extracted . | . . . . Installed . | . . . . Triggered . | . . . . Machines | -11 -10 -9 -8 ---------- Run | Yrd Mat Mat Mat Machines Disabled 8 | . . 3 5 Max in Single Turn 2 | . . 2 1 Garrison Access 1 | . . . 1 Machines Repaired . | . . . . Machines Dismantled . | . . . . Machines Sabotaged . | . . . . Overloaded Fab Kills . | . . . . Hacking | -11 -10 -9 -8 --------- Run | Yrd Mat Mat Mat Machines Accessed 15 | . 5 4 6 Terminals 8 | . 3 2 3 Fabricators . | . . . . Repair Stations 1 | . . . 1 Recycling Units 4 | . 2 2 . Scanalyzers 1 | . . . 1 Garrison Access 1 | . . . 1 Total Hacks 34 | . 7 7 20 Successful 25 | . 4 6 15 Failed 8 | . 3 1 4 Catastrophic . | . . . . Database Lockouts 1 | . . . 1 Manual . | . . . . Terminals 20 | . 4 5 11 Fabricators . | . . . . Repair Stations 3 | . . . 3 Recycling Units 5 | . 3 2 . Scanalyzers 5 | . . . 5 Garrison Access 1 | . . . 1 Terminal Hacks 13 | . 2 4 7 Record 9 | . . 2 7 Emergency Access Points 1 | . . 1 . Alert Level 1 | . . 1 . Registered Components 1 | . 1 . . Zone Layout 1 | . 1 . . Fabricator Hacks . | . . . . Repair Station Hacks 3 | . . . 3 Scan Component 2 | . . . 2 Repair 1 | . . . 1 Recycling Unit Hacks 4 | . 2 2 . Report Inventory 3 | . 1 2 . Retrieve Components 1 | . 1 . . Scanalyzer 4 | . . . 4 Insert Component 2 | . . . 2 Analyze 2 | . . . 2 Garrison Access Hacks 1 | . . . 1 Seal Access 1 | . . . 1 Unauthorized Hacks . | . . . . Terminals . | . . . . Fabricators . | . . . . Repair Stations . | . . . . Recycling Units . | . . . . Scanalyzers . | . . . . Garrison Access . | . . . . Data Cores Recovered . | . . . . Used . | . . . . Hacking Detections 8 | . 3 . 5 Full Trace Events 3 | . . . 3 Feedback Events . | . . . . Feedback Blocked . | . . . . Robot Schematics Acquired . | . . . . Robots Built . | . . . . Authchips . | . . . . Time . | . . . . Total Robot Build Rating . | . . . . Part Schematics Acquired 2 | . . . 2 Parts Built . | . . . . Authchips . | . . . . Time . | . . . . Total Part Build Rating . | . . . . Parts Repaired 1 | . . . 1 Time 38 | . . . 38 Parts Recycled . | . . . . Recycled Matter . | . . . . Retrieved Matter . | . . . . Retrieved Components 5 | . 5 . . Parts Scanalyzed 2 | . . . 2 Part Schematics Acquired 2 | . . . 2 Parts Damaged . | . . . . Bothacking | -11 -10 -9 -8 ------------ Run | Yrd Mat Mat Mat Used RIF Installer . | . . . . Robots Hacked . | . . . . Non-combat . | . . . . Combat . | . . . . Robot Hacks Applied . | . . . . Relay Couplers Released . | . . . . Fabnet Peak Effective % . | . . . . Robots Rewired . | . . . . Allies Hacked . | . . . . Hacks Repelled . | . . . . Allies | -11 -10 -9 -8 -------- Run | Yrd Mat Mat Mat Total Allies . | . . . . Largest Group . | . . . . Highest-Rated Group . | . . . . Highest-Rated Ally . | . . . . Total Orders . | . . . . Ally Attacks . | . . . . Total Damage . | . . . . Kills . | . . . . Allies Corrupted . | . . . . Allies Melted . | . . . . Intel | -11 -10 -9 -8 ------- Run | Yrd Mat Mat Mat Robot Analysis Total . | . . . . Derelict Logs Recovered . | . . . . Drone Launches . | . . . . Drone Recoveries . | . . . . Exploration | -11 -10 -9 -8 ------------- Run | Yrd Mat Mat Mat Turns Passed 2536 | 85 695 935 821 Spaces Moved 1436 | 48 375 545 468 Core 13 | 13 . . . Treads 423 | 35 375 13 . Legs 1000 | . . 532 468 Wheels . | . . . . Hover . | . . . . Flight . | . . . . Fastest Speed 50 | 50 160 90 105 Average Speed 141 | 130 160 139 129 Slowest Speed 185 | 160 160 180 185 Overloaded Moves . | . . . . Propulsion Burnouts . | . . . . Robots Hopped . | . . . . Cave-ins Triggered . | . . . . Exploration Rate (%) 33 | 5 61 39 27 Regions Visited 3 Branch Regions . Pre-discovered Areas . | . . . . Known Exits Taken . | . . . . Unknown Exits Taken 3 | 1 1 1 . Scrap Searched . | . . . . Spaces Dug 4 | . . 4 . Terrain Destroyed 40 | . . 25 15 Melee . | . . . . Projectile 40 | . . 25 15 AOE . | . . . . Terrain Rammed . | . . . . Walls Destroyed . | . . . . Machines Disabled . | . . . . Actions | -11 -10 -9 -8 --------- Run | Yrd Mat Mat Mat Total 1697 | 63 429 637 568 Wait 20 | . 2 2 16 Move 1433 | 47 374 544 468 Hop . | . . . . Pick Up 40 | 6 12 14 8 Fast Attach 12 | . 1 5 6 Attach 18 | 5 2 3 8 Detach 2 | . . . 2 Swap 19 | . 5 8 6 Drop 32 | . 7 19 6 Fire 114 | 5 26 36 47 Melee . | . . . . Ram . | . . . . Kick 7 | . . 6 1 Crush . | . . . . Escape Stasis . | . . . . Rewire . | . . . . Trap . | . . . . Miscellaneous . | . . . . Route ------- -11/Scrapyard -10/Materials (discovered 3 exits: *Mat x2 / [*Min]) -9/Materials (discovered 2 exits: *Mat x2) -8/Materials History --------- Turn | Location | Event 6 | -11/Scrapyard | Discovered new exit (range 15) 86 | -11/Scrapyard | Entered Materials 196 | -10/Materials | Discovered new exit (range 10) 307 | -10/Materials | Build established: Mutant 424 | -10/Materials | Discovered new exit (range 9) 632 | -10/Materials | Discovered new exit (range 13) 781 | -10/Materials | Entered another Materials area 781 | -9/Materials | Evolved 2 slots: Weapon x2 1080 | -9/Materials | Build established: Gunner 1504 | -9/Materials | Discovered new exit (range 15) 1644 | -9/Materials | Discovered new exit (range 9) 1716 | -9/Materials | Entered another Materials area 1716 | -8/Materials | Evolved 2 slots: Utility x2 2110 | -8/Materials | Repaired Assault Cannon 2409 | -8/Materials | Central database locked down 2524 | -8/Materials | Lost 4 parts (2u2w) 2537 | -8/Materials | Self-destructed Last Messages --------------- 02477_ An alarm sounds. 02477_ ALERT: Alarm triggered, dispatching investigation squad. 02478_ U-05 Engineer lays Concrete. 02478_ Acquired 1 matter. 02478_ U-05 Engineer lays Concrete. 02480_ Assault Cannon destroyed. 02480_ U-05 Engineer builds a Wall. 02486_ K-01 Serf cleans the Terminal. 02487_ Particle Gun destroyed. 02487_ Hrd. Light Armor Plating destroyed. 02488_ U-05 Engineer builds a Door. 02491_ K-01 Serf cleans the Terminal. 02493_ U-05 Engineer lays Concrete. 02493_ Imp. Heat Sink destroyed. 02493_ Critical hit (Blast). 02496_ K-01 Serf cleans the Terminal. 02496_ U-05 Engineer lays Concrete. 02498_ Penetrated by Slug. 02502_ System corrupted: Component data lost. Map ----- +----------------------------------------------------+ | ?????????????????????#???#"## ######## # # | | ??????????????????????? ## # # ####### | | ???????????????????? ## # " #?????? | | ?????????????????? ??# # # #?????? | | ?????????????????+ ???# # " " # #?????? | | ?????????????????#######????#^ # "G" # #?????? | | ???? ??????????????????????##^^ # " # #?????? | | ??? ???????????????######## # # #?????? | | ???? ???????????????# # ######## #?????? | | ???? ???????????????# #^ ######## +?????? | | ???? ???????????????# " " + # ????? | | ???? ???????????????# "R" # # "???? | | ????#+#??????????????# """ # #? ???? | | ????# #??????????????# # ############? ??? | | ????# #????????###???######## #????????????? ?? | | ???## ####################### #??????????????##? | | #### #????????????????? | | % % #????????????????? | | "################# #????????????????? | | ##???????????????# #????????????????? | | #???????########## #????????????????? | | #???????# !# #????????????????? | | "" """ #???????# """ # #????????????????? | | %""" """ #???????# """ # #????????????????? | | """ """ #???????# """ + #????????????????? | | """ """ #???????# @ # #????????????????? | | """ """ #???????# """ # +????????????????? | | #???????# """ # #????????????????? | | #???????# """ # #????????????????? | | T###### #???????# # #????????????????? | | ##????? #???????##########% #????????????????? | | ??????? #????????????????# #????????????????? | | ??????? #????????????????? #????????????????? | | ??????? #????????????????? #????????????????? | | ???????? #????????????????? #????????????????? | | ???????? #????????????????? ????????????????? | | ????????? ????????????????? ????????????????? | | ?????????? ???????????????? ????????????????? | | ?????????? ????????????????? ?????????????????? | | ?????????????????????????????????????????????????? | | ?????????????????????????????????????????????????? | | ?????????????????????????????????????????????????? | | ?????????????????????????????????????????????????? | | ?????????????????????????????????????????????????? | | ?????????????????????????????????????????????????? | | ?????????????????????????????????????????????????? | | ?????????????????????????????????????????????????? | | ?????????????????????????????????????????????????? | | ?????????????????????????????????????????????????? | | ?????????????????????????????????????????????????? | +----------------------------------------------------+ Best States ------------- Heat Dissipation 45 Energy Generation 14 Energy Capacity 240 Matter Stores 300 Matter Capacity 300 Sight Range 16 Robot Scan Range 14 Terrain Scan Range 16 Terrain Scan Density 10 Armor Coverage 150 Resistance: EM 15 Evasion (%) 57 Targeting Accuracy 17 Recoil Reduction 2 Item Schematics ----------------- Hrd. Light Armor Plating | -8/Materials | Scanalyzed Assault Cannon | -8/Materials | Scanalyzed Robot Schematics ------------------ None Fabricated ------------ Nothing Alien Tech Used ----------------- None Achievements -------------- Please Form A Line Challenges ------------ None Game ------ Seed DisruptorHeatLeg Manual? 0 Play Time 00:49:07 Cumulative 2.2 hours Start 2024.06.05 @ 18:39:27 End 2024.06.05 @ 23:27:25 Sessions 5 Manual Loads 0 Difficulty Rogue Special Mode None Game No. 3 Rogue 3 Adventurer 0 Explorer 0 Win Type - Total 0 Types 0/0/0/0/0/0/0/0/0 Lore% 13 Gallery% 9 Achievement% 7 Wizard Run 0 Options --------- Layout 1 ASCII 0 Keyboard 0 Movement Mouse Keybinds 0 Fullscreen 1 Font 32/SmallcapsGlow Map View 50x35 Zoom Use 0% Tactical HUD 1 Map Filters NONE Filters NONE Steam 1 RUN: 45fbef8d-f0c7-4a00-b0c3-4ca6b3cd4852